fUST/lending_fUST_20250224
["ID","MTS","AMOUNT","RATE_DAILY","PERIOD"]
[354291418,1740394247646,-500.0,0.0001378,2]
[354291419,1740394247655,-567.83,0.0001378,2]
[354291420,1740394247664,-500.0,0.0001378,2]
[354291421,1740394247673,-500.0,0.0001378,2]
[354291422,1740394247681,-500.0,0.0001378,2]
[354291423,1740394247691,-500.0,0.0001378,2]
[354291424,1740394247699,-500.0,0.0001378,2]
[354291425,1740394247708,-500.0,0.0001378,2]
[354291426,1740394247718,-500.0,0.0001378,2]
[354291427,1740394247727,-500.0,0.0001378,2]
[354291428,1740394247736,-500.0,0.0001378,2]
[354291429,1740394247746,-500.0,0.0001378,2]
[354291430,1740394247755,-500.0,0.0001378,2]
[354291431,1740394247765,-505.14873693,0.0001378,2]
[354291432,1740394247775,-500.0,0.0001378,2]
[354291433,1740394247784,-500.0,0.0001378,2]
[354291434,1740394247793,-500.0,0.0001378,2]
[354291435,1740394247803,-500.0,0.0001378,2]
[354291436,1740394247812,-500.0,0.0001378,2]
[354291437,1740394247821,-500.0,0.0001378,2]
[354291438,1740394247830,-500.0,0.0001378,2]
[354291439,1740394247840,-500.0,0.0001378,2]
[354291440,1740394247849,-500.0,0.0001378,2]
[354291441,1740394247858,-500.0,0.0001378,2]
[354291442,1740394247867,-475.78603396,0.0001378,2]
[354291443,1740394247876,-500.0,0.0001378,2]
[354291444,1740394247884,-500.0,0.0001378,2]
[354291445,1740394247893,-500.0,0.0001378,2]
[354291446,1740394247903,-500.0,0.0001378,2]
[354291447,1740394247911,-500.0,0.0001378,2]
[354291448,1740394247921,-500.0,0.0001378,2]
[354291449,1740394247930,-501.49388745,0.0001378,2]
[354291450,1740394247939,-500.0,0.0001378,2]
[354291451,1740394247948,-500.0,0.0001378,2]
[354291452,1740394247958,-500.0,0.0001378,2]
[354291453,1740394247967,-500.0,0.0001378,2]
[354291454,1740394247976,-500.0,0.0001378,2]
[354291455,1740394247985,-500.0,0.0001378,2]
[354291456,1740394247995,-500.0,0.0001378,2]
[354291457,1740394248004,-1921.11,0.0001378,2]
[354291458,1740394248013,-583.81,0.0001378,2]
[354291459,1740394248024,-500.0,0.0001378,2]
[354291460,1740394248034,-500.0,0.0001378,2]
[354291461,1740394248044,-20424.73,0.0001378,2]
[354291462,1740394248054,-500.0,0.0001378,2]
[354291463,1740394248063,-500.0,0.0001378,2]
[354291464,1740394248073,-500.0,0.0001378,2]
[354291465,1740394248082,-948.8,0.0001378,2]
[354291466,1740394248091,-500.0,0.0001378,2]
[354291467,1740394248101,-500.0,0.0001378,2]
[354291468,1740394248111,-1550.43,0.0001378,2]
[354291469,1740394248120,-500.0,0.0001378,2]
[354291470,1740394248130,-611.35,0.0001378,2]
[354291471,1740394248140,-367.52712783,0.0001378,2]
[354291472,1740394248150,-732.4,0.0001378,2]
[354291473,1740394248159,-500.0,0.0001378,2]
[354291474,1740394248169,-712.41,0.0001378,2]
[354291475,1740394248179,-500.0,0.0001378,2]
[354291476,1740394248189,-500.0,0.0001378,2]
[354291477,1740394248199,-500.0,0.0001378,2]
[354291478,1740394248209,-735.88,0.0001378,2]
[354291479,1740394248219,-500.0,0.0001378,2]
[354291480,1740394248228,-500.0,0.0001378,2]
[354291481,1740394248240,-500.0,0.0001378,2]
[354291482,1740394248250,-500.0,0.0001378,2]
[354291483,1740394248260,-500.0,0.0001378,2]
[354291484,1740394248270,-500.0,0.0001378,2]
[354291485,1740394248281,-1053.1,0.0001378,2]
[354291486,1740394248291,-500.0,0.0001378,2]
[354291487,1740394248300,-500.0,0.0001378,2]
[354291488,1740394248310,-500.0,0.0001378,2]
[354291489,1740394248320,-1753.27,0.0001378,2]
[354291490,1740394248330,-500.0,0.0001378,2]
[354291491,1740394248340,-500.0,0.0001378,2]
[354291492,1740394248351,-500.0,0.0001378,2]
[354291493,1740394248360,-500.0,0.0001378,2]
[354291494,1740394248370,-2855.75,0.0001378,2]
[354291495,1740394248380,-500.0,0.0001378,2]
[354291496,1740394248390,-415.093941,0.0001378,2]
[354291497,1740394248399,-885.06,0.0001378,2]
[354291498,1740394248409,-500.0,0.0001378,2]
[354291499,1740394248420,-500.0,0.0001378,2]
[354291500,1740394248430,-500.0,0.0001378,2]
[354291501,1740394248439,-500.64095455,0.0001378,2]
[354291502,1740394248449,-500.0,0.0001378,2]
[354291503,1740394248459,-500.0,0.0001378,2]
[354291504,1740394248468,-1981.08,0.0001378,2]
[354291505,1740394248478,-500.0,0.0001378,2]
[354291506,1740394248487,-500.0,0.0001378,2]
[354291507,1740394248496,-500.0,0.0001378,2]
[354291508,1740394248506,-500.0,0.0001378,2]
[354291509,1740394248515,-189.80084717,0.0001378,2]
[354291510,1740394248526,-667.57,0.0001378,2]
[354291511,1740394248536,-500.0,0.0001378,2]
[354291512,1740394248546,-500.0,0.0001378,2]
[354291513,1740394248555,-822.99,0.0001378,2]
[354291514,1740394248566,-500.0,0.0001378,2]
[354291515,1740394248575,-1661.69,0.0001378,2]
[354291516,1740394248585,-500.0,0.0001378,2]
[354291517,1740394248594,-684.18,0.0001378,2]
[354291518,1740394248603,-500.0,0.0001378,2]
[354291519,1740394248613,-808.66,0.0001378,2]
[354291520,1740394248622,-500.0,0.0001378,2]
[354291521,1740394248632,-500.0,0.0001378,2]
[354291522,1740394248641,-528.02,0.0001378,2]
[354291523,1740394248650,-500.0,0.0001378,2]
[354291524,1740394248659,-607.78,0.0001378,2]
[354291525,1740394248668,-682.24,0.0001378,2]
[354291526,1740394248677,-957.67,0.0001378,2]
[354291527,1740394248687,-256.55234567,0.0001378,2]
[354291528,1740394248696,-963.45,0.0001378,2]
[354291529,1740394248706,-500.0,0.0001378,2]
[354291530,1740394248716,-500.0,0.0001378,2]
[354291531,1740394248725,-6272.44,0.0001378,2]
[354291532,1740394248735,-506.77494165,0.0001378,2]
[354291533,1740394248744,-500.0,0.0001378,2]
[354291534,1740394248754,-500.0,0.0001378,2]
[354291535,1740394248763,-392.2325545,0.0001378,2]
[354291536,1740394248774,-890.71,0.0001378,2]
[354291537,1740394248785,-503.81940396,0.0001378,2]
[354291538,1740394248794,-506.04350759,0.0001378,2]
[354291539,1740394248804,-500.0,0.0001378,2]
[354291540,1740394248813,-500.0,0.0001378,2]
[354291541,1740394248824,-500.0,0.0001378,2]
[354291542,1740394248833,-500.0,0.0001378,2]
[354291543,1740394248843,-1135.14,0.0001378,2]
[354291544,1740394248853,-500.0,0.0001378,2]
[354291545,1740394248863,-500.0,0.0001378,2]
[354291546,1740394248872,-500.0,0.0001378,2]
[354291547,1740394248882,-500.0,0.0001378,2]
[354291548,1740394248891,-500.0,0.0001378,2]
[354291549,1740394248900,-500.0,0.0001378,2]
[354291550,1740394248910,-500.0,0.0001378,2]
[354291551,1740394248920,-2141.08,0.0001378,2]
[354291552,1740394248929,-500.0,0.0001378,2]
[354291553,1740394248940,-500.0,0.0001378,2]
[354291554,1740394248949,-500.0,0.0001378,2]
[354291555,1740394248959,-500.0,0.0001378,2]
[354291556,1740394248968,-628.54,0.0001378,2]
[354291557,1740394248978,-500.0,0.0001378,2]
[354291558,1740394248987,-500.0,0.0001378,2]
[354291559,1740394248997,-500.0,0.0001378,2]
[354291560,1740394249007,-500.0,0.0001378,2]
[354291561,1740394249018,-500.0,0.0001378,2]
[354291562,1740394249030,-572.97,0.0001378,2]
[354291563,1740394249040,-500.0,0.0001378,2]
[354291564,1740394249049,-500.0,0.0001378,2]
[354291565,1740394249059,-500.0,0.0001378,2]
[354291566,1740394249069,-409.50135988,0.0001378,2]
[354291567,1740394249079,-500.0,0.0001378,2]
[354291568,1740394249089,-500.0,0.0001378,2]
[354291569,1740394249099,-500.0,0.0001378,2]
[354291570,1740394249109,-240.41967557,0.0001378,2]
[354291571,1740394249119,-7366.7,0.0001378,2]
[354291572,1740394249128,-500.0,0.0001378,2]
[354291573,1740394249138,-1270.13,0.0001378,2]
[354291574,1740394249148,-500.0,0.0001378,2]
[354291575,1740394249158,-3623.79,0.0001378,2]
[354291576,1740394249167,-465.72,0.0001378,2]
[354291577,1740394249177,-150.294,0.00013855,2]
[354291578,1740394249187,-539.647,0.00013855,2]
[354291579,1740394249197,-1974.254,0.00013855,2]
[354291580,1740394249206,-2285.0,0.00013855,2]
[354291581,1740394249216,-500.0,0.00013863,2]
[354291582,1740394249226,-500.0,0.00013863,2]
[354291583,1740394249237,-500.0,0.00013863,2]
[354291584,1740394249248,-500.0,0.00013863,2]
[354291585,1740394249257,-500.0,0.00013863,2]
[354291586,1740394249268,-366.25647139,0.00013863,2]
[354291587,1740394249280,-500.0,0.00013863,2]
[354291588,1740394249290,-500.0,0.00013863,2]
[354291589,1740394249300,-500.0,0.00013863,2]
[354291590,1740394249311,-500.0,0.00013863,2]
[354291591,1740394249323,-500.0,0.00013863,2]
[354291592,1740394249332,-500.0,0.00013863,2]
[354291593,1740394249342,-500.0,0.00013863,2]
[354291594,1740394249351,-500.0,0.00013863,2]
[354291595,1740394249361,-500.0,0.00013863,2]
[354291596,1740394249371,-500.0,0.00013863,2]
[354291597,1740394249381,-500.0,0.00013863,2]
[354291598,1740394249391,-500.0,0.00013863,2]
[354291599,1740394249400,-500.0,0.00013863,2]
[354291600,1740394249410,-500.0,0.00013863,2]
[354291601,1740394249420,-500.0,0.00013863,2]
[354291602,1740394249430,-500.0,0.00013863,2]
[354291603,1740394249439,-508.04942098,0.00013863,2]
[354291604,1740394249449,-500.0,0.00013863,2]
[354291605,1740394249459,-500.0,0.00013863,2]
[354291606,1740394249469,-883.31,0.00013863,2]
[354291607,1740394249479,-500.0,0.00013863,2]
[354291608,1740394249489,-500.0,0.00013863,2]
[354291609,1740394249499,-535.5,0.00013863,2]
[354291610,1740394249508,-500.0,0.00013863,2]
[354291611,1740394249518,-503.43455033,0.00013863,2]
[354291612,1740394249529,-500.0,0.00013863,2]
[354291613,1740394249539,-500.0,0.00013863,2]
[354291614,1740394249548,-500.0,0.00013863,2]
[354291615,1740394249558,-500.0,0.00013863,2]
[354291616,1740394249568,-500.0,0.00013863,2]
[354291617,1740394249578,-500.0,0.00013863,2]
[354291618,1740394249588,-500.0,0.00013863,2]
[354291619,1740394249597,-500.0,0.00013863,2]
[354291620,1740394249607,-567.83,0.00013863,2]
[354291621,1740394249616,-500.0,0.00013863,2]
[354291622,1740394249626,-500.0,0.00013863,2]
[354291623,1740394249635,-500.0,0.00013863,2]
[354291624,1740394249645,-500.0,0.00013863,2]
[354291625,1740394249654,-500.0,0.00013863,2]
[354291626,1740394249664,-500.0,0.00013863,2]
[354291627,1740394249673,-500.0,0.00013863,2]
[354291628,1740394249683,-500.0,0.00013863,2]
[354291629,1740394249693,-500.0,0.00013863,2]
[354291630,1740394249705,-192.76592663,0.00013863,2]
[354291631,1740394249714,-500.0,0.00013863,2]
[354291632,1740394249724,-500.0,0.00013863,2]
[354291633,1740394249734,-500.0,0.00013863,2]
[354291634,1740394249744,-500.0,0.00013863,2]
[354291635,1740394249754,-502.85106677,0.00013863,2]
[354291636,1740394249763,-500.0,0.00013863,2]
[354291637,1740394249773,-500.0,0.00013863,2]
[354291638,1740394249783,-500.0,0.00013863,2]
[354291639,1740394249792,-500.0,0.00013863,2]
[354291640,1740394249802,-500.0,0.00013863,2]
[354291641,1740394249812,-500.0,0.00013863,2]
[354291642,1740394249821,-500.0,0.00013863,2]
[354291643,1740394249831,-500.0,0.00013863,2]
[354291644,1740394249841,-502.82692331,0.00013863,2]
[354291645,1740394249851,-500.0,0.00013863,2]
[354291646,1740394249861,-500.0,0.00013863,2]
[354291647,1740394249871,-1921.11,0.00013863,2]
[354291648,1740394249880,-583.81,0.00013863,2]
[354291649,1740394249890,-500.0,0.00013863,2]
[354291650,1740394249900,-20424.73,0.00013863,2]
[354291651,1740394249910,-500.0,0.00013863,2]
[354291652,1740394249919,-500.0,0.00013863,2]
[354291653,1740394249929,-948.8,0.00013863,2]
[354291654,1740394249939,-240.98363877,0.00013863,2]
[354291655,1740394249949,-500.0,0.00013863,2]
[354291656,1740394249959,-1550.43,0.00013863,2]
[354291657,1740394249968,-500.0,0.00013863,2]
[354291658,1740394249978,-611.35,0.00013863,2]
[354291659,1740394249988,-732.4,0.00013863,2]
[354291660,1740394249998,-712.41,0.00013863,2]
[354291661,1740394250008,-87.13890949,0.00013863,2]
[354291662,1740394250362,-294.34966643,0.00013863,2]
[354291663,1740394250372,-334.67067255,0.00013863,2]
[354291664,1740394250483,-165.32932745,0.00013863,2]
[354291665,1740394250493,-334.67067255,0.00013863,2]
[354291666,1740394250504,-165.32932745,0.00013863,2]
[354291667,1740394250514,-735.88,0.00013863,2]
[354291668,1740394250524,-500.0,0.00013863,2]
[354291669,1740394250534,-463.7678388,0.00013863,2]
[354291670,1740394250543,-500.0,0.00013863,2]
[354291671,1740394250553,-500.0,0.00013863,2]
[354291672,1740394250562,-500.0,0.00013863,2]
[354291673,1740394250571,-1053.1,0.00013863,2]
[354291674,1740394250580,-500.0,0.00013863,2]
[354291675,1740394250589,-500.0,0.00013863,2]
[354291676,1740394250598,-500.0,0.00013863,2]
[354291677,1740394250607,-1753.27,0.00013863,2]
[354291678,1740394250617,-500.0,0.00013863,2]
[354291679,1740394250626,-500.0,0.00013863,2]
[354291680,1740394250635,-500.0,0.00013863,2]
[354291681,1740394250644,-500.0,0.00013863,2]
[354291682,1740394250653,-2855.75,0.00013863,2]
[354291683,1740394250662,-500.0,0.00013863,2]
[354291684,1740394250672,-885.06,0.00013863,2]
[354291685,1740394250681,-500.0,0.00013863,2]
[354291686,1740394250690,-500.0,0.00013863,2]
[354291687,1740394250700,-500.0,0.00013863,2]
[354291688,1740394250709,-500.0,0.00013863,2]
[354291689,1740394250719,-1981.08,0.00013863,2]
[354291690,1740394250727,-500.0,0.00013863,2]
[354291691,1740394250736,-500.0,0.00013863,2]
[354291692,1740394250745,-500.0,0.00013863,2]
[354291693,1740394250755,-667.57,0.00013863,2]
[354291694,1740394250764,-500.0,0.00013863,2]
[354291695,1740394250773,-500.0,0.00013863,2]
[354291696,1740394250782,-822.99,0.00013863,2]
[354291697,1740394250791,-1661.69,0.00013863,2]
[354291698,1740394250800,-500.0,0.00013863,2]
[354291699,1740394250810,-500.0,0.00013863,2]
[354291700,1740394250819,-684.18,0.00013863,2]
[354291701,1740394250828,-808.66,0.00013863,2]
[354291702,1740394250837,-500.0,0.00013863,2]
[354291703,1740394250846,-528.02,0.00013863,2]
[354291704,1740394250855,-500.0,0.00013863,2]
[354291705,1740394250864,-607.78,0.00013863,2]
[354291706,1740394250873,-682.24,0.00013863,2]
[354291707,1740394250882,-957.67,0.00013863,2]
[354291708,1740394250891,-963.45,0.00013863,2]
[354291709,1740394250899,-500.0,0.00013863,2]
[354291710,1740394250908,-6272.44,0.00013863,2]
[354291711,1740394250918,-500.0,0.00013863,2]
[354291712,1740394250927,-500.0,0.00013863,2]
[354291713,1740394250937,-890.71,0.00013863,2]
[354291714,1740394250946,-500.0,0.00013863,2]
[354291715,1740394250956,-500.0,0.00013863,2]
[354291716,1740394250966,-500.0,0.00013863,2]
[354291717,1740394250975,-1135.14,0.00013863,2]
[354291718,1740394250985,-503.23941906,0.00013863,2]
[354291719,1740394250994,-500.0,0.00013863,2]
[354291720,1740394251003,-557.1767469,0.00013863,2]
[354291721,1740394251012,-500.0,0.00013863,2]
[354291722,1740394251021,-500.0,0.00013863,2]
[354291723,1740394251031,-500.0,0.00013863,2]
[354291724,1740394251040,-500.0,0.00013863,2]
[354291725,1740394251050,-2141.08,0.00013863,2]
[354291726,1740394251059,-500.0,0.00013863,2]
[354291727,1740394251069,-500.0,0.00013863,2]
[354291728,1740394251078,-500.0,0.00013863,2]
[354291729,1740394251087,-628.54,0.00013863,2]
[354291730,1740394251096,-500.0,0.00013863,2]
[354291731,1740394251105,-500.0,0.00013863,2]
[354291732,1740394251115,-500.0,0.00013863,2]
[354291733,1740394251124,-500.0,0.00013863,2]
[354291734,1740394251134,-572.97,0.00013863,2]
[354291735,1740394251144,-500.0,0.00013863,2]
[354291736,1740394251153,-500.0,0.00013863,2]
[354291737,1740394251163,-500.0,0.00013863,2]
[354291738,1740394251172,-500.0,0.00013863,2]
[354291739,1740394251181,-7366.7,0.00013863,2]
[354291740,1740394251190,-500.0,0.00013863,2]
[354291741,1740394251199,-1270.13,0.00013863,2]
[354291742,1740394251208,-500.0,0.00013863,2]
[354291743,1740394251217,-1404.38688517,0.00013863,2]
[354291744,1740394806942,83.512855,9.041e-05,2]
[354291745,1740394806965,128.680228,9.041e-05,2]
[354291787,1740395432119,-300.0,0.00012592,2]
[354291789,1740395432129,-6040.27769791,0.00012593,2]
[354291792,1740395432140,-1750.75781448,0.00012593,2]
[354291802,1740395432225,-17108.96448761,0.00012593,2]
[354291804,1740395432235,-156.40427026,0.00013276,2]
[354291806,1740395432244,-19601.91606613,0.00013374,2]
[354291808,1740395432253,-150.0,0.00013376,2]
[354291810,1740395432262,-538.0,0.00013376,2]
[354291812,1740395432271,-1970.0,0.00013376,2]
[354291814,1740395432280,-2285.0,0.00013376,2]
[354291816,1740395432289,-202.57354982,0.00013598,2]
[354291818,1740395432298,-3000.0,0.00013598,2]
[354291820,1740395432307,-38984.91922843,0.00013598,2]
[354291822,1740395432316,-1437.24944605,0.00013664,2]
[354291824,1740395432325,-500.0,0.00013673,2]
[354291826,1740395432335,-160.17210268,0.00013673,2]
[354291828,1740395432344,-504.07252932,0.00013673,2]
[354291830,1740395432353,-500.0,0.00013673,2]
[354291832,1740395432362,-500.0,0.00013673,2]
[354291834,1740395432371,-501.2087568,0.00013673,2]
[354291836,1740395432381,-435.54620578,0.00013673,2]
[354291838,1740395432390,-622.35528044,0.00013673,2]
[354291840,1740395432399,-502.57127438,0.00013673,2]
[354291842,1740395432408,-151.0,0.0001369,2]
[354291844,1740395432418,-500.0,0.00013698,2]
[354291846,1740395432427,-627.92706868,0.00013698,2]
[354291848,1740395432436,-500.0,0.00013698,2]
[354291850,1740395432445,-500.0,0.00013698,2]
[354291852,1740395432454,-584.6109817,0.00013698,2]
[354291854,1740395432463,-526.30117538,0.00013698,2]
[354291856,1740395432473,-500.0,0.00013698,2]
[354291858,1740395432482,-500.0,0.00013698,2]
[354291860,1740395432492,-500.0,0.00013698,2]
[354291862,1740395432501,-500.0,0.00013698,2]
[354291864,1740395432510,-500.0,0.00013698,2]
[354291866,1740395432519,-500.0,0.00013698,2]
[354291868,1740395432529,-500.0,0.00013698,2]
[354291870,1740395432538,-502.65189866,0.00013698,2]
[354291872,1740395432548,-500.0,0.00013698,2]
[354291874,1740395432557,-500.0,0.00013698,2]
[354291876,1740395432567,-500.0,0.00013698,2]
[354291878,1740395432576,-500.0,0.00013698,2]
[354291880,1740395432585,-501.09278847,0.00013698,2]
[354291882,1740395432594,-502.25854192,0.00013698,2]
[354291884,1740395432603,-500.0,0.00013698,2]
[354291886,1740395432613,-500.0,0.00013698,2]
[354291888,1740395432623,-500.0,0.00013698,2]
[354291890,1740395432636,-500.0,0.00013698,2]
[354291892,1740395432645,-500.0,0.00013698,2]
[354291894,1740395432655,-510.80053049,0.00013698,2]
[354291896,1740395432665,-500.0,0.00013698,2]
[354291898,1740395432674,-500.0,0.00013698,2]
[354291900,1740395432684,-500.0,0.00013698,2]
[354291902,1740395432693,-500.0,0.00013698,2]
[354291904,1740395432704,-500.0,0.00013698,2]
[354291906,1740395432713,-525.60969558,0.00013698,2]
[354291908,1740395432722,-500.0,0.00013698,2]
[354291910,1740395432731,-500.0,0.00013698,2]
[354291913,1740395432741,-500.0,0.00013698,2]
[354291915,1740395432750,-500.0,0.00013698,2]
[354291917,1740395432759,-500.0,0.00013698,2]
[354291919,1740395432768,-500.0,0.00013698,2]
[354291921,1740395432777,-500.0,0.00013698,2]
[354291923,1740395432787,-500.0,0.00013698,2]
[354291925,1740395432797,-500.0,0.00013698,2]
[354291927,1740395432806,-500.0,0.00013698,2]
[354291929,1740395432815,-500.0,0.00013698,2]
[354291931,1740395432825,-500.0,0.00013698,2]
[354291933,1740395432833,-500.0,0.00013698,2]
[354291935,1740395432843,-500.0,0.00013698,2]
[354291937,1740395432852,-500.0,0.00013698,2]
[354291939,1740395432860,-521.32307024,0.00013698,2]
[354291941,1740395432869,-500.0,0.00013698,2]
[354291943,1740395432878,-501.66923596,0.00013698,2]
[354291945,1740395432887,-497.2556,0.00013698,2]
[354291947,1740395432896,-504.0199234,0.00013698,2]
[354291949,1740395432905,-500.0,0.00013698,2]
[354291951,1740395432914,-500.0,0.00013698,2]
[354291952,1740395432923,-500.0,0.00013698,2]
[354291955,1740395432933,-500.0,0.00013698,2]
[354291957,1740395432942,-500.0,0.00013698,2]
[354291959,1740395432950,-503.86326658,0.00013698,2]
[354291961,1740395432959,-555.47870052,0.00013698,2]
[354291963,1740395432968,-500.0,0.00013698,2]
[354291964,1740395432977,-355.025,0.00013698,2]
[354291967,1740395432987,-475.22566588,0.00013698,2]
[354291969,1740395432996,-500.0,0.00013698,2]
[354291971,1740395433006,-500.0,0.00013698,2]
[354291973,1740395433015,-500.0,0.00013698,2]
[354291974,1740395433024,-500.0,0.00013698,2]
[354291977,1740395433035,-500.0,0.00013698,2]
[354291978,1740395433044,-500.0,0.00013698,2]
[354291980,1740395433053,-500.0,0.00013698,2]
[354291983,1740395433063,-500.0,0.00013698,2]
[354291984,1740395433071,-500.0,0.00013698,2]
[354291986,1740395433081,-500.0,0.00013698,2]
[354291988,1740395433091,-500.0,0.00013698,2]
[354291991,1740395433100,-530.39467916,0.00013698,2]
[354291993,1740395433110,-500.0,0.00013698,2]
[354291995,1740395433119,-500.0,0.00013698,2]
[354291997,1740395433128,-552.64499874,0.00013698,2]
[354291999,1740395433137,-500.0,0.00013698,2]
[354292000,1740395433147,-500.0,0.00013698,2]
[354292002,1740395433156,-500.0,0.00013698,2]
[354292005,1740395433166,-500.0,0.00013698,2]
[354292006,1740395433175,-500.0,0.00013698,2]
[354292009,1740395433185,-500.0,0.00013698,2]
[354292010,1740395433194,-500.0,0.00013698,2]
[354292013,1740395433205,-500.0,0.00013698,2]
[354292015,1740395433214,-500.0,0.00013698,2]
[354292016,1740395433224,-500.0,0.00013698,2]
[354292018,1740395433233,-500.0,0.00013698,2]
[354292020,1740395433244,-500.58520642,0.00013698,2]
[354292022,1740395433258,-511.48685198,0.00013698,2]
[354292024,1740395433268,-500.0,0.00013698,2]
[354292026,1740395433278,-500.0,0.00013698,2]
[354292028,1740395433287,-500.0,0.00013698,2]
[354292030,1740395433297,-504.40682222,0.00013698,2]
[354292032,1740395433307,-500.0,0.00013698,2]
[354292034,1740395433316,-502.90624184,0.00013698,2]
[354292036,1740395433326,-500.0,0.00013698,2]
[354292038,1740395433335,-500.0,0.00013698,2]
[354292040,1740395433345,-500.0,0.00013698,2]
[354292042,1740395433355,-505.06840567,0.00013698,2]
[354292044,1740395433365,-500.0,0.00013698,2]
[354292046,1740395433375,-514.01201223,0.00013698,2]
[354292048,1740395433384,-500.0,0.00013698,2]
[354292050,1740395433393,-500.0,0.00013698,2]
[354292052,1740395433403,-500.0,0.00013698,2]
[354292055,1740395433413,-500.0,0.00013698,2]
[354292057,1740395433423,-500.0,0.00013698,2]
[354292059,1740395433434,-500.0,0.00013698,2]
[354292061,1740395433444,-500.0,0.00013698,2]
[354292063,1740395433454,-500.0,0.00013698,2]
[354292065,1740395433463,-500.0,0.00013698,2]
[354292067,1740395433473,-500.0,0.00013698,2]
[354292069,1740395433482,-500.0,0.00013698,2]
[354292071,1740395433492,-500.0,0.00013698,2]
[354292073,1740395433501,-814.57,0.00013698,2]
[354292075,1740395433510,-500.0,0.00013698,2]
[354292077,1740395433520,-500.0,0.00013698,2]
[354292079,1740395433530,-500.0,0.00013698,2]
[354292081,1740395433540,-500.0,0.00013698,2]
[354292083,1740395433549,-500.0,0.00013698,2]
[354292085,1740395433559,-500.0,0.00013698,2]
[354292087,1740395433568,-481.91579717,0.00013698,2]
[354292089,1740395433578,-500.0,0.00013698,2]
[354292091,1740395433586,-500.0,0.00013698,2]
[354292093,1740395433597,-500.0,0.00013698,2]
[354292095,1740395433606,-500.0,0.00013698,2]
[354292097,1740395433615,-258.96,0.00013698,2]
[354292099,1740395433627,-500.0,0.00013698,2]
[354292100,1740395433636,-500.0,0.00013698,2]
[354292102,1740395433646,-500.0,0.00013698,2]
[354292104,1740395433655,-500.0,0.00013698,2]
[354292106,1740395433666,-515.46,0.00013698,2]
[354292108,1740395433676,-500.0,0.00013698,2]
[354292111,1740395433685,-500.0,0.00013698,2]
[354292113,1740395433695,-500.0,0.00013698,2]
[354292115,1740395433705,-255.3083535,0.00013698,2]
[354292116,1740395433715,-500.0,0.00013698,2]
[354292119,1740395433724,-500.0,0.00013698,2]
[354292120,1740395433734,-500.0,0.00013698,2]
[354292122,1740395433744,-500.0,0.00013698,2]
[354292124,1740395433754,-500.0,0.00013698,2]
[354292126,1740395433764,-500.0,0.00013698,2]
[354292128,1740395433773,-500.0,0.00013698,2]
[354292130,1740395433783,-500.0,0.00013698,2]
[354292133,1740395433793,-500.0,0.00013698,2]
[354292135,1740395433805,-500.0,0.00013698,2]
[354292136,1740395433817,-500.0,0.00013698,2]
[354292138,1740395433827,-500.0,0.00013698,2]